bitfinex/quotes_BTCUSD_20220109
["timestamp","ask_amount","ask_price","bid_price","bid_amount"]
[1641726897236,0.88461988,41927.0,41926.0,0.00043123]
[1641726897835,0.88461988,41927.0,41923.0,0.40543123]
[1641726898035,0.11935511,41925.0,41923.0,0.40543123]
[1641726898835,0.12635511,41925.0,41923.0,0.40543123]
[1641726899035,0.4944486,41925.0,41923.0,0.40543123]
[1641726899687,0.5541276,41925.0,41923.0,0.40543123]
[1641726899888,0.34571311,41925.0,41923.0,0.40543123]
[1641726901785,0.34571311,41925.0,41924.0,0.33635463]
[1641726901786,0.107,41925.0,41924.0,0.33635463]
[1641726901986,0.007,41925.0,41923.0,0.36813123]
[1641726902185,0.20046,41930.0,41928.0,0.27755154]
[1641726902489,0.00039876,41931.0,41929.0,0.29777502]
[1641726902932,0.021,41930.0,41929.0,0.29777502]
[1641726903534,0.021,41930.0,41929.0,0.29277502]
[1641726904232,0.00039876,41931.0,41929.0,0.29277502]
[1641726904433,0.00039187,41931.0,41929.0,0.29277502]
[1641726904934,0.02839187,41931.0,41929.0,0.6428527]
[1641726905141,0.02839187,41931.0,41930.0,1.23504618]
[1641726905334,0.02839187,41931.0,41930.0,0.8849685]
[1641726905534,0.02839188,41931.0,41930.0,0.3849685]
[1641726905939,0.02839188,41931.0,41930.0,0.48496849]
[1641726906236,0.00290255,41936.0,41930.0,0.75424649]
[1641726906436,0.00290255,41936.0,41934.0,0.06087567]
[1641726906690,0.00290255,41936.0,41935.0,0.383693]
[1641726907291,0.00290255,41936.0,41935.0,1.03007496]
[1641726907794,0.00331264,41936.0,41935.0,1.03007496]
[1641726907991,0.00331264,41936.0,41935.0,1.1493449]
[1641726908192,0.00041009,41936.0,41935.0,1.1493449]
[1641726908792,0.01341009,41936.0,41935.0,1.1533449]
[1641726908994,0.01341009,41936.0,41935.0,1.3033449]
[1641726909197,0.00966275,41936.0,41935.0,1.3033449]
[1641726909395,0.01931541,41936.0,41935.0,1.3033449]
[1641726909997,0.01930532,41936.0,41935.0,1.2993449]
[1641726910636,0.01930532,41936.0,41935.0,1.63462095]
[1641726910834,0.01930532,41936.0,41935.0,1.66162095]
[1641726911037,0.00039318,41941.0,41936.0,0.85]
[1641726911236,0.00039318,41941.0,41940.0,0.10120813]
[1641726911435,0.00039318,41941.0,41940.0,0.93205179]
[1641726911634,0.00039318,41941.0,41940.0,1.03205179]
[1641726911834,0.00039318,41941.0,41940.0,1.08205179]
[1641726912037,0.00076974,41941.0,41940.0,1.37736596]
[1641726912235,0.00037656,41941.0,41940.0,1.37736596]
[1641726912435,0.99537656,41945.0,41941.0,0.383693]
[1641726912636,0.99537656,41945.0,41943.0,0.00121935]
[1641726912839,0.99537656,41945.0,41944.0,0.383693]
[1641726914037,0.99537656,41945.0,41944.0,0.483693]
[1641726914297,0.0103716,41949.0,41948.0,0.00120504]
[1641726914495,0.0103716,41949.0,41948.0,0.06081943]
[1641726914695,0.0103716,41949.0,41948.0,0.059617]
[1641726914896,0.0103716,41949.0,41948.0,0.033]
[1641726915397,0.0053716,41949.0,41948.0,0.033]
[1641726916197,1.0553716,41949.0,41940.0,0.00057934]
[1641726916398,0.059641,41945.0,41940.0,0.00057934]
[1641726916598,0.35946076,41944.0,41940.0,0.00057934]
[1641726916798,0.30852221,41942.0,41940.0,0.00057934]
[1641726916999,0.80294014,41941.0,41940.0,0.01157934]
[1641726917599,0.35294014,41941.0,41940.0,0.01157934]
[1641726918032,0.35294014,41941.0,41940.0,0.00057934]
[1641726918436,0.059648,41942.0,41940.0,0.00057934]
[1641726918634,0.38198338,41942.0,41936.0,0.00146432]
[1641726918835,0.005,41941.0,41936.0,0.00102183]
[1641726919236,0.064646,41941.0,41936.0,0.00102183]
[1641726919635,0.005,41941.0,41936.0,0.00102183]
[1641726919835,0.005,41941.0,41936.0,0.00101187]
[1641726920837,0.002,41941.0,41936.0,0.0134444]
[1641726921037,0.002,41941.0,41936.0,0.01301187]
[1641726921434,0.002,41941.0,41936.0,0.13228087]
[1641726922094,0.33014261,41943.0,41936.0,0.17991487]
[1641726922297,0.32514261,41943.0,41936.0,0.17991487]
[1641726922496,0.32514261,41943.0,41938.0,0.059631]
[1641726922699,0.97268325,41946.0,41936.0,0.00101187]
[1641726922895,0.009,41943.0,41936.0,0.12227187]
[1641726923094,0.004,41943.0,41936.0,0.1227044]
[1641726923298,0.004,41943.0,41936.0,0.12227187]
[1641726923497,0.00371296,41943.0,41938.0,0.06021118]
[1641726924096,0.00371296,41943.0,41939.0,0.059632]
[1641726924296,0.00371296,41943.0,41940.0,0.059626]
[1641726924697,0.00371296,41943.0,41942.0,0.33985283]
[1641726924898,0.007,41943.0,41942.0,0.33985283]
[1641726925834,0.007,41943.0,41940.0,0.23916274]
[1641726926037,0.007,41943.0,41940.0,0.001]
[1641726926834,0.00038404,41946.0,41938.0,0.31578604]
[1641726927036,0.004,41943.0,41940.0,0.003]
[1641726928239,0.00038302,41946.0,41938.0,0.31578604]
[1641726928638,0.00038302,41946.0,41942.0,0.0005775]
[1641726929292,0.33009267,41946.0,41942.0,0.0005775]
[1641726929583,0.34163353,41946.0,41942.0,0.0005775]
[1641726929783,0.34163358,41946.0,41942.0,0.0005775]
[1641726929983,0.05964159,41945.0,41942.0,0.0005775]
[1641726930184,0.37555378,41945.0,41942.0,0.0005775]
[1641726930886,0.37955378,41945.0,41942.0,0.0055775]
[1641726931083,0.43919278,41945.0,41942.0,0.0055775]
[1641726932085,0.119293,41944.0,41942.0,0.0055775]
[1641726932286,1.00123301,41943.0,41942.0,0.0005775]
[1641726932585,1.15123301,41943.0,41942.0,0.0005775]
[1641726933038,1.15623301,41943.0,41942.0,0.0005775]
[1641726933433,1.25623301,41943.0,41942.0,0.0005775]
[1641726933635,0.11931943,41940.0,41936.0,0.00101025]
[1641726933935,0.23863786,41941.0,41936.0,0.00101025]
[1641726933936,0.36504454,41938.0,41936.0,0.00101025]
[1641726934131,0.36504454,41938.0,41936.0,0.001443]
[1641726934333,0.059656,41938.0,41936.0,0.00101025]
[1641726934935,0.029,41938.0,41936.0,0.00101025]
[1641726936341,0.14336778,41924.0,41921.0,0.004]
[1641726936542,0.00121993,41922.0,41921.0,0.004]
[1641726936799,0.66153601,41922.0,41921.0,0.004]
[1641726936993,0.66153601,41922.0,41921.0,0.008]
[1641726937197,0.32970633,41922.0,41921.0,0.008]
[1641726937794,0.38938133,41922.0,41921.0,0.008]
[1641726938197,0.72181374,41922.0,41921.0,0.004]
[1641726938596,0.38938133,41922.0,41921.0,0.004]
[1641726938895,0.72814434,41922.0,41921.0,0.004]
[1641726939695,0.99157738,41922.0,41921.0,0.004]
[1641726940294,0.98657738,41922.0,41921.0,0.004]
[1641726940743,0.72314434,41922.0,41921.0,0.004]
[1641726940939,0.75014434,41922.0,41921.0,0.004]
[1641726942340,0.72314434,41922.0,41921.0,0.004]
[1641726942841,0.87902722,41922.0,41921.0,0.004]
[1641726943041,0.88602722,41922.0,41921.0,0.004]
[1641726944295,0.87902722,41922.0,41921.0,0.004]
[1641726944797,0.87902722,41922.0,41911.0,0.423696]
[1641726944996,0.27890085,41915.0,41911.0,0.423696]
[1641726945196,0.33858285,41915.0,41911.0,0.423696]
[1641726945893,0.33324842,41916.0,41911.0,0.423696]
[1641726946094,0.00126567,41912.0,41911.0,0.423696]
[1641726946295,0.09390567,41912.0,41911.0,0.423696]
[1641726946494,0.00121926,41912.0,41911.0,0.423696]
[1641726946694,0.41091226,41912.0,41911.0,0.423696]
[1641726947094,0.67334482,41912.0,41911.0,0.423696]
[1641726947795,0.67334482,41912.0,41911.0,0.42413659]
[1641726948040,0.32340765,41912.0,41911.0,0.42413659]
[1641726948240,0.63957846,41912.0,41911.0,0.42413659]
[1641726948441,0.98957846,41912.0,41911.0,0.42413659]
[1641726949042,0.99957846,41912.0,41911.0,0.42413659]
[1641726949343,3.77893824,41912.0,41911.0,0.42413659]
[1641726949944,3.77893824,41912.0,41911.0,0.42412667]
[1641726950356,3.86357824,41912.0,41911.0,0.42412667]
[1641726950545,3.54040743,41912.0,41911.0,0.42412667]
[1641726950945,3.54440743,41912.0,41911.0,0.42412667]
[1641726951147,3.64440743,41912.0,41911.0,0.42412667]
[1641726951348,3.69440743,41912.0,41911.0,0.42412667]
[1641726951550,3.64440743,41912.0,41911.0,0.42412667]
[1641726951790,3.19433487,41912.0,41911.0,0.42412667]
[1641726952095,3.29433487,41912.0,41911.0,0.42412667]
[1641726952289,3.19433487,41912.0,41911.0,0.42412667]
[1641726952489,3.29033487,41912.0,41911.0,0.42412667]
[1641726952691,3.72515833,41912.0,41911.0,0.42412667]
[1641726952889,3.62515833,41912.0,41911.0,0.42412667]
[1641726953089,3.65115833,41912.0,41911.0,0.42412667]
[1641726953289,3.65115833,41912.0,41911.0,0.42455734]
[1641726953589,3.65115833,41912.0,41911.0,0.42412667]
[1641726953792,3.70115833,41912.0,41911.0,0.42412667]
[1641726953990,3.65115833,41912.0,41911.0,0.42412667]
[1641726954191,3.70115833,41912.0,41911.0,0.42412667]
[1641726954390,3.72515833,41912.0,41911.0,0.42412582]
[1641726955090,3.39915833,41912.0,41911.0,0.42412582]
[1641726956142,3.44905833,41912.0,41911.0,0.42412582]
[1641726956342,3.47505833,41912.0,41911.0,0.42412582]
[1641726956542,3.47505833,41912.0,41911.0,0.42455564]
[1641726956743,3.47505833,41912.0,41911.0,0.42412582]
[1641726956945,3.50105833,41912.0,41911.0,0.42412582]
[1641726957745,3.50105833,41912.0,41911.0,0.42412692]
[1641726958444,3.47505833,41912.0,41911.0,0.42412692]
[1641726958645,3.82505833,41912.0,41911.0,0.42412692]
[1641726959044,5.22105833,41912.0,41911.0,0.42412692]
[1641726959891,5.22105833,41912.0,41911.0,0.00043092]
[1641726960092,5.12105833,41912.0,41911.0,0.00043092]
[1641726960292,5.20105833,41912.0,41911.0,0.00043092]
[1641726960895,0.58850122,41906.0,41901.0,0.004]
[1641726961093,0.6245646,41902.0,41901.0,0.004]
[1641726961393,0.8216006,41902.0,41901.0,0.004]
[1641726961598,0.9216006,41902.0,41901.0,0.004]
[1641726961792,0.8716006,41902.0,41901.0,0.004]
[1641726961992,1.22367604,41902.0,41901.0,0.004]
[1641726962193,1.22367604,41902.0,41901.0,0.00443854]
[1641726962592,1.66304568,41902.0,41901.0,0.00443854]
[1641726962793,1.76304568,41902.0,41901.0,0.00443854]
[1641726963047,1.75904568,41902.0,41901.0,0.00443854]
[1641726963343,1.75904568,41902.0,41901.0,0.00443744]
[1641726963543,1.04638256,41902.0,41901.0,0.00511141]
[1641726963743,1.00906256,41902.0,41901.0,0.00511141]
[1641726963944,0.56698712,41902.0,41901.0,0.00511141]
[1641726964145,0.106,41902.0,41901.0,0.00511141]
[1641726964344,0.1,41902.0,41901.0,0.00511141]
[1641726964545,0.0999,41904.0,41901.0,0.00511141]
[1641726965142,0.1189,41904.0,41901.0,0.00611141]
[1641726965543,0.00290255,41908.0,41902.0,0.00043743]
[1641726965944,0.99956257,41902.0,41901.0,0.00567397]
[1641726966343,0.99956257,41902.0,41901.0,0.00467397]
[1641726966997,1.02056257,41902.0,41901.0,0.00467397]
[1641726967595,1.43026557,41902.0,41901.0,0.00467397]
[1641726967795,1.69407541,41902.0,41901.0,0.00467397]
[1641726967995,1.54527702,41902.0,41901.0,0.00467397]
[1641726968395,1.17181792,41894.0,41890.0,0.22361435]
[1641726968597,0.04383163,41888.0,41882.0,0.01]
[1641726968798,0.67412432,41887.0,41882.0,0.00119772]
[1641726968995,0.17405548,41886.0,41882.0,0.00119772]
[1641726969195,0.59405548,41886.0,41882.0,0.00119772]
[1641726969495,0.31078832,41883.0,41882.0,0.00119772]
[1641726969695,0.839368,41883.0,41882.0,0.00119772]
[1641726970095,1.439368,41883.0,41882.0,0.00119772]
[1641726970551,1.339368,41883.0,41882.0,0.00119772]
[1641726970855,1.1,41883.0,41882.0,0.00119772]
[1641726971052,0.104,41883.0,41882.0,0.00163536]
[1641726971652,0.004,41883.0,41882.0,0.00163536]
[1641726972853,0.059727,41884.0,41882.0,0.00163536]
[1641726973053,0.006,41883.0,41882.0,0.00163536]
[1641726973252,0.07806664,41883.0,41882.0,0.00163536]
[1641726973453,0.17806664,41883.0,41882.0,0.00163536]
[1641726973653,0.07806664,41883.0,41882.0,0.00215836]
[1641726974298,0.07206664,41883.0,41882.0,0.00215836]
[1641726974698,1.07162921,41883.0,41882.0,0.00215836]
[1641726974899,1.07162921,41883.0,41882.0,0.00043764]
[1641726975200,1.07862921,41883.0,41882.0,0.00043764]
[1641726976103,1.00656257,41883.0,41882.0,0.27244644]
[1641726976304,0.17913,41888.0,41882.0,0.32244644]
[1641726976498,0.17913,41888.0,41882.0,0.47287424]
[1641726976699,0.17913,41888.0,41883.0,0.383693]
[1641726976899,0.17913,41888.0,41884.0,0.34767194]
[1641726977100,0.17913,41888.0,41884.0,0.39767194]
[1641726977301,0.17913,41888.0,41885.0,0.059708]
[1641726977501,0.17913,41888.0,41884.0,0.34767194]
[1641726978347,0.17913,41888.0,41881.0,0.119425]
[1641726978548,0.17913,41888.0,41880.0,0.28499251]
[1641726978745,0.17913,41888.0,41876.0,0.32505916]
[1641726979144,0.17913,41888.0,41880.0,0.021]
[1641726979145,0.18013,41888.0,41880.0,0.021]
[1641726979347,0.05972493,41885.0,41880.0,0.021]
[1641726979550,0.059727,41887.0,41880.0,0.021]
[1641726979746,0.25860019,41886.0,41880.0,0.021]
[1641726979946,0.059727,41887.0,41880.0,0.021]
[1641726980349,0.059727,41887.0,41878.0,0.30752988]
[1641726980549,0.3986317,41889.0,41877.0,0.0004366]
[1641726980748,0.06093756,41884.0,41877.0,0.0004366]
[1641726980949,0.00120956,41884.0,41877.0,0.0004366]
[1641726981550,0.05972906,41882.0,41877.0,0.32308047]
[1641726981799,0.059729,41883.0,41877.0,0.32308047]
[1641726981996,0.00120956,41884.0,41877.0,0.32308047]
[1641726981997,0.05120956,41884.0,41877.0,0.0004366]
[1641726982395,0.1706762,41884.0,41877.0,0.0004366]
[1641726982596,0.1206762,41884.0,41877.0,0.0004366]
[1641726982798,0.11946613,41881.0,41877.0,0.0008732]
[1641726983100,0.059734,41882.0,41877.0,0.0004366]
[1641726983799,0.11947408,41881.0,41877.0,0.0004366]
[1641726983999,0.059741,41879.0,41877.0,0.00042677]
[1641726984200,0.11447387,41879.0,41877.0,0.00042677]
[1641726985003,0.11447387,41879.0,41877.0,0.00085354]
[1641726985004,0.05473287,41879.0,41877.0,0.00085354]
[1641726985301,0.05473287,41879.0,41877.0,0.00042677]
[1641726985302,0.004,41879.0,41877.0,0.00042677]
[1641726985744,0.004,41879.0,41878.0,0.3307927]
[1641726986343,0.1,41885.0,41878.0,0.3307927]
[1641726986746,0.2004,41887.0,41880.0,0.07419027]
[1641726986948,0.2004,41887.0,41881.0,0.33435184]
[1641726987146,0.016,41885.0,41880.0,0.12419027]
[1641726987446,0.016,41885.0,41883.0,0.05971]
[1641726987646,0.016,41885.0,41884.0,0.2903626]
[1641726988249,0.00040035,41893.0,41884.0,0.2903626]
[1641726988546,0.00290255,41891.0,41884.0,0.2903626]
[1641726988945,0.00290255,41891.0,41885.0,0.059713]
[1641726989197,0.00290255,41891.0,41886.0,0.31576963]
[1641726989601,0.00290255,41891.0,41884.0,0.3163626]
[1641726989798,0.00290255,41891.0,41884.0,0.026]
[1641726989998,0.059721,41888.0,41884.0,0.026]
[1641726990399,0.06094493,41892.0,41880.0,0.07419027]
[1641726990598,0.06094493,41892.0,41882.0,0.31536065]
[1641726990801,0.06094493,41892.0,41882.0,0.62698567]
[1641726991201,0.059721,41888.0,41882.0,0.62698567]
[1641726991404,0.06094493,41892.0,41882.0,0.62698567]
[1641726991405,0.00122593,41892.0,41882.0,0.62698567]
[1641726992603,0.05972,41891.0,41882.0,0.62698567]
[1641726992955,0.059722,41888.0,41880.0,0.07419027]
[1641726993148,0.059722,41888.0,41882.0,0.02]
[1641726993849,0.4098012,41888.0,41882.0,0.02]
[1641726994348,0.4098012,41888.0,41878.0,0.7547772]
[1641726994548,0.4098012,41888.0,41878.0,0.7541772]
[1641726994949,0.059722,41888.0,41879.0,0.059722]
[1641726995750,0.201,41889.0,41878.0,0.01629537]
[1641726996150,0.059728,41888.0,41878.0,0.01629537]
[1641726996352,0.059725,41886.0,41878.0,0.00129537]
[1641726996795,0.059725,41886.0,41879.0,0.31253471]
[1641726997796,0.059725,41886.0,41879.0,0.31220642]
[1641726998994,0.059725,41886.0,41885.0,0.28524222]
[1641726999196,0.002,41886.0,41885.0,0.28524222]
[1641726999995,0.002,41886.0,41879.0,0.31220642]
[1641727000196,0.002,41886.0,41881.0,0.05972]
[1641727000448,0.20058,41890.0,41880.0,0.33131437]
[1641727000748,0.00122593,41892.0,41879.0,0.31220642]
[1641727000953,0.00122593,41892.0,41884.0,0.27723382]
[1641727001154,0.05972,41890.0,41884.0,0.27723382]
[1641727001351,0.00122593,41892.0,41884.0,0.27723382]
[1641727002149,0.06094193,41892.0,41884.0,0.27723382]
[1641727003151,0.06294193,41892.0,41884.0,0.29823382]
[1641727004400,0.00122593,41892.0,41884.0,0.27723382]
[1641727004601,0.00122593,41892.0,41884.0,0.33694782]
[1641727004901,0.00122593,41892.0,41885.0,0.059716]
[1641727005301,0.00122593,41892.0,41884.0,0.30423382]
[1641727005501,0.059719,41890.0,41884.0,0.30423382]
[1641727006303,0.059719,41890.0,41884.0,0.27723382]
[1641727006703,0.00122593,41892.0,41884.0,0.27723382]
[1641727007101,0.00122593,41892.0,41884.0,0.28723382]
[1641727007502,0.35,41891.0,41884.0,0.28723382]
[1641727008151,0.00122593,41892.0,41884.0,0.28723382]
[1641727008152,0.2001,41890.0,41884.0,0.28723382]
[1641727008452,0.2001,41890.0,41886.0,0.00058464]
[1641727008955,0.609819,41890.0,41886.0,0.00058464]
[1641727009153,0.61282158,41890.0,41886.0,0.00658464]
[1641727010056,0.059724,41888.0,41886.0,0.00658464]
[1641727010255,0.059724,41888.0,41884.0,6.969e-05]
[1641727010856,0.059724,41888.0,41884.0,0.00013937]
[1641727011258,0.003,41888.0,41884.0,0.00620911]
[1641727011460,0.00041453,41887.0,41884.0,0.00620911]
[1641727011720,0.30408738,41887.0,41884.0,0.00620911]
[1641727011917,0.30408738,41887.0,41884.0,0.00627882]
[1641727012419,0.3625668,41887.0,41884.0,0.00027882]
[1641727012619,0.00041453,41886.0,41884.0,0.00027882]
[1641727013019,0.31104868,41886.0,41884.0,0.00027882]
[1641727013219,0.39377547,41886.0,41884.0,0.00127882]
[1641727013419,0.08314132,41886.0,41884.0,0.00127882]
[1641727013619,0.059725,41885.0,41884.0,0.00127882]
[1641727014519,0.059725,41885.0,41884.0,0.00027882]
[1641727015118,0.065725,41885.0,41884.0,0.00327882]
[1641727015554,0.37064793,41885.0,41884.0,0.00327882]
[1641727015752,0.065725,41885.0,41884.0,0.00327882]
[1641727016351,0.059725,41885.0,41884.0,0.00027882]
[1641727016956,0.059723,41886.0,41884.0,0.00027882]
[1641727017152,0.004,41885.0,41884.0,0.00027882]
[1641727017752,0.004,41885.0,41884.0,0.31081517]
[1641727018454,0.2001,41890.0,41884.0,0.31081517]
[1641727018654,0.33384103,41888.0,41884.0,0.31074549]
[1641727019055,0.39356103,41888.0,41884.0,0.00020914]
[1641727019304,0.39556103,41888.0,41884.0,0.01020914]
[1641727019506,0.39556103,41888.0,41884.0,0.01013945]
[1641727020306,0.45528389,41888.0,41884.0,0.01013945]
[1641727020508,0.059722,41887.0,41884.0,0.00013945]
[1641727020906,0.33384103,41888.0,41884.0,0.00013945]
[1641727021108,0.002,41887.0,41884.0,0.01113945]
[1641727021510,0.061721,41887.0,41884.0,0.01113945]
[1641727022008,0.30786858,41886.0,41884.0,0.01113945]
[1641727022209,0.40786858,41886.0,41884.0,0.01113945]
[1641727022412,1.14470253,41885.0,41884.0,0.01113945]
[1641727022607,1.30442753,41885.0,41884.0,0.00013945]
[1641727022807,1.42390362,41885.0,41884.0,0.00013945]
[1641727023250,1.71254557,41885.0,41884.0,0.01113945]
[1641727024451,1.70754557,41885.0,41884.0,0.00013945]
[1641727025149,1.71454557,41885.0,41884.0,0.00013945]
[1641727025950,1.61454557,41885.0,41884.0,0.00013945]
[1641727026151,2.66454557,41885.0,41884.0,0.00013945]
[1641727026349,2.71454557,41885.0,41884.0,0.00013945]
[1641727026549,2.70754557,41885.0,41884.0,0.00013945]
[1641727027218,3.99054557,41885.0,41884.0,0.00013945]
[1641727028515,4.03354557,41885.0,41884.0,0.00013945]
[1641727028717,4.10562151,41885.0,41884.0,0.00013945]
[1641727029320,4.11162151,41885.0,41884.0,0.00013945]
[1641727030450,4.10562151,41885.0,41884.0,0.00013945]
[1641727031253,2.08562151,41885.0,41884.0,0.00013945]
[1641727031453,2.18552151,41885.0,41884.0,0.00013945]
[1641727032450,2.17952151,41885.0,41884.0,0.00013945]
[1641727033151,2.18452151,41885.0,41884.0,0.00013945]
[1641727033351,3.46052151,41885.0,41884.0,0.00013945]
[1641727033753,2.18452151,41885.0,41884.0,0.00013945]
[1641727034405,1.89587956,41885.0,41884.0,0.00013945]
[1641727034601,1.2803276,41885.0,41884.0,0.00013945]
[1641727034801,1.159625,41885.0,41884.0,0.00013945]
[1641727035000,1.059725,41885.0,41884.0,0.00013945]
[1641727035201,1.089725,41885.0,41884.0,0.00013945]
[1641727035602,1.089725,41885.0,41880.0,0.15056637]
[1641727035603,1.39521876,41885.0,41880.0,0.15056637]
[1641727035803,0.059731,41883.0,41881.0,0.00042692]
[1641727036003,0.059731,41882.0,41881.0,0.00042692]
[1641727036909,0.059726,41884.0,41881.0,0.00042692]
[1641727037102,0.059726,41884.0,41880.0,0.15056637]
[1641727037303,0.025,41882.0,41880.0,0.15056637]
[1641727038348,0.025,41882.0,41880.0,0.21028637]
[1641727038548,1.0,41885.0,41881.0,0.32405769]
[1641727038948,1.0,41885.0,41880.0,0.15056637]
[1641727039347,1.02,41885.0,41881.0,0.004]
[1641727039549,1.02,41885.0,41881.0,0.063722]
[1641727039750,1.02,41885.0,41881.0,0.004]
[1641727040751,1.02,41885.0,41881.0,0.063721]
[1641727040950,1.02,41885.0,41881.0,0.004]
[1641727041151,1.0,41885.0,41880.0,0.15062637]
[1641727041349,1.009,41885.0,41881.0,0.002]
[1641727041802,1.009,41885.0,41883.0,0.25187886]
[1641727042404,1.009,41885.0,41884.0,0.27275311]
[1641727042605,1.009,41885.0,41884.0,0.67275311]
[1641727042606,1.0,41885.0,41884.0,0.67275311]
[1641727042803,1.0,41885.0,41884.0,0.72275311]
[1641727043002,1.0,41885.0,41884.0,0.42275311]
[1641727043204,1.001,41885.0,41884.0,0.44975311]
[1641727043403,1.001,41885.0,41884.0,0.50946923]
[1641727043604,1.001,41885.0,41884.0,1.24663278]
[1641727043808,0.00040376,41886.0,41885.0,0.4]
[1641727044004,0.00040376,41886.0,41885.0,0.533693]
[1641727044402,0.00040376,41886.0,41885.0,0.63369299]
[1641727044808,0.00040377,41886.0,41885.0,0.63369299]
[1641727045005,0.00040377,41886.0,41885.0,0.91689302]
[1641727045204,0.00040377,41886.0,41885.0,0.93089302]
[1641727045851,0.00026751,41894.0,41885.0,0.93904034]
[1641727046053,0.00026751,41894.0,41893.0,0.23514332]
[1641727046451,0.00026751,41894.0,41893.0,0.28514332]
[1641727047255,0.00026751,41894.0,41893.0,0.70818882]
[1641727047458,0.00026751,41894.0,41893.0,1.19188182]
[1641727047662,0.6426,41910.0,41907.0,0.54791239]
[1641727047663,0.2226,41910.0,41907.0,0.54791239]
[1641727047958,0.367896,41916.0,41915.0,0.00120554]
[1641727047959,0.420696,41916.0,41915.0,0.00120554]
[1641727048155,0.420696,41916.0,41915.0,0.02099554]
[1641727048156,0.000696,41916.0,41915.0,0.02099554]
[1641727048354,0.000696,41916.0,41915.0,0.65820704]
[1641727048554,0.000696,41916.0,41915.0,0.80820704]
[1641727048755,0.000696,41916.0,41915.0,0.85820704]
[1641727049398,0.000696,41916.0,41915.0,0.95820703]
[1641727049600,0.000696,41916.0,41915.0,0.85820704]
[1641727049798,0.000696,41916.0,41915.0,1.23236915]
[1641727050198,0.00110524,41916.0,41915.0,1.23236915]
[1641727050398,0.00110524,41916.0,41915.0,1.33236914]
[1641727050702,5.24e-06,41916.0,41915.0,1.06385064]
[1641727050899,0.0013275,41924.0,41919.0,0.1193015]
[1641727051100,0.0013275,41924.0,41923.0,0.00126984]
[1641727051299,0.0013275,41924.0,41923.0,0.38496284]
[1641727051499,0.0013275,41924.0,41923.0,0.53496284]
[1641727051900,0.0013275,41924.0,41923.0,1.16130926]
[1641727052101,0.0013275,41924.0,41923.0,0.34024295]
[1641727052504,0.0001,41924.0,41923.0,0.34024295]
[1641727053457,0.0001,41924.0,41923.0,0.37124295]
[1641727053654,0.0001,41924.0,41923.0,0.37195594]
[1641727054054,0.0001,41924.0,41923.0,0.3706861]
[1641727054453,0.0001,41924.0,41923.0,0.3396861]
[1641727054654,0.00051561,41924.0,41923.0,0.3396861]
[1641727055256,0.00051561,41924.0,41923.0,0.3736861]
[1641727055655,0.00051561,41924.0,41923.0,0.4736861]
[1641727055958,0.00051561,41924.0,41923.0,0.3236861]
[1641727056155,0.00051561,41924.0,41923.0,0.03471299]
[1641727056556,0.00051561,41924.0,41923.0,0.00071299]
[1641727057207,0.00451561,41924.0,41923.0,0.02571299]
[1641727058108,0.00493122,41924.0,41923.0,0.02571299]
[1641727058511,0.00093122,41924.0,41923.0,0.00071299]
[1641727059311,0.00393122,41924.0,41923.0,0.02571299]
[1641727059711,0.003895,41924.0,41923.0,0.02571299]
[1641727060112,0.00347939,41924.0,41923.0,0.02577299]
[1641727060559,0.45047939,41924.0,41923.0,0.00077299]
[1641727060857,0.66108027,41924.0,41923.0,0.00077299]
[1641727061057,0.21108027,41924.0,41923.0,0.00077299]
[1641727061259,0.00547939,41924.0,41923.0,0.01677299]
[1641727061858,0.00548037,41924.0,41923.0,0.01677299]
[1641727062059,0.00548037,41924.0,41923.0,0.01671299]
[1641727062260,0.32517844,41919.0,41911.0,0.3897453]
[1641727062460,0.00048037,41924.0,41912.0,0.05967]
[1641727062660,0.00048037,41924.0,41915.0,0.27429679]
[1641727062865,0.00048037,41924.0,41915.0,0.32429679]
[1641727063260,0.2650354,41922.0,41915.0,0.34529679]
[1641727063464,0.3379162,41920.0,41915.0,0.29529679]
[1641727063662,0.3379162,41920.0,41915.0,0.021]
[1641727064500,0.3379162,41920.0,41914.0,0.00059978]
[1641727065299,0.3409162,41920.0,41914.0,0.02459978]
[1641727065701,0.003,41920.0,41914.0,0.02459978]
[1641727066103,0.003,41920.0,41914.0,0.3535469]
[1641727066305,0.003,41920.0,41914.0,0.02459978]
[1641727066503,0.00039877,41921.0,41914.0,0.00059978]
[1641727066703,0.30942694,41921.0,41914.0,0.00059978]
[1641727067104,0.4769738,41921.0,41914.0,0.00059978]
[1641727067305,0.05468085,41920.0,41914.0,0.02459978]
[1641727067507,0.059684,41918.0,41914.0,0.02459978]
[1641727068155,0.28452568,41915.0,41914.0,0.02459978]
[1641727068555,0.28452568,41915.0,41907.0,0.85703343]
[1641727068752,0.28452568,41915.0,41907.0,0.90703343]
[1641727068753,0.26189009,41914.0,41907.0,0.90703343]
[1641727069154,0.28452568,41915.0,41907.0,0.90703343]
[1641727069355,0.003,41914.0,41908.0,0.059676]
[1641727069555,0.003,41914.0,41907.0,0.93103343]
[1641727070456,0.26550028,41918.0,41908.0,0.059676]
[1641727070855,0.33039989,41917.0,41908.0,0.059676]
[1641727071155,0.33039989,41917.0,41907.0,0.59791239]
[1641727071357,0.33039989,41917.0,41908.0,0.023]
[1641727071698,0.32039989,41917.0,41908.0,0.023]
[1641727072398,0.32718528,41918.0,41908.0,0.023]
[1641727072600,0.26550028,41918.0,41907.0,0.59791239]
[1641727073403,0.2446483,41911.0,41907.0,0.62291239]
[1641727073600,0.2446483,41911.0,41910.0,0.00060228]
[1641727074401,0.26850028,41918.0,41910.0,0.00060228]
[1641727074604,0.26550028,41918.0,41910.0,0.00060228]
[1641727075003,0.16430102,41921.0,41910.0,0.00060228]
[1641727075202,0.00119376,41919.0,41910.0,0.00060228]
[1641727075452,0.29880027,41912.0,41910.0,0.02060228]
[1641727076257,0.059681,41917.0,41910.0,0.02060228]
[1641727076655,0.20076,41918.0,41910.0,0.00060228]
[1641727077254,0.20076,41918.0,41910.0,0.02260228]
[1641727077255,0.3334739,41917.0,41910.0,0.02260228]
[1641727078655,0.059683,41915.0,41912.0,0.00060103]
[1641727079304,0.073683,41915.0,41912.0,0.00260103]
[1641727080105,0.13337034,41915.0,41912.0,0.00260103]
[1641727080707,0.44093465,41914.0,41912.0,0.00060103]
[1641727080905,1.00146178,41913.0,41912.0,0.00060103]
[1641727081108,1.05146178,41913.0,41912.0,0.00060103]
[1641727081305,0.19646178,41913.0,41912.0,0.00060103]
[1641727081505,0.24757623,41914.0,41912.0,0.00060103]
[1641727082506,0.24057623,41914.0,41912.0,0.00060103]
[1641727083659,0.31553225,41909.0,41907.0,0.54851279]
[1641727083856,0.11937534,41915.0,41907.0,0.54851279]